[Event "SixDays Budapest March IM A 2025"]
[Site "Budapest"]
[Date "2025.03.24"]
[Round "1.1"]
[White "Karacsonyi, Bank"]
[Black "Ilincic, Zlatko"]
[Result "0-1"]
[Annotator "TA"]
[ECO "B54"]
[WhiteElo "2162"]
[BlackElo "2251"]
[PlyCount "70"]
[EventDate "2025.03.23"]
[EventCountry "HUN"]
[SourceTitle "playchess.com"]
[Source "ChessBase"]
[SourceQuality "1"]
[TimeControl "5400+30"]

{[%evp 17,70,0,0,-14,8,0,0,0,94,-10,23,-17,-18,-19,8,-27,-16,-98,-40,-95,-89,-88,-73,-77,-39,-101,-35,-47,-42,-40,-38,-89,-97,-103,-103,-125,-33,-39,-6,-139,-136,-217,-235,-338,-315,-451,-453,-461,-482,-459,-388,-669,-689,-702,-707]} 1. e4 {[%emt 0:00:03]} c5 {[%emt 0:00:09]} 2. Nf3 {[%emt 0:00:05]} d6 {[%emt 0:00:12]} 3. d4 {[%emt 0:00:04]} cxd4 {[%emt 0:00:09]} 4. Nxd4 {[%emt 0:00:05]} a6 {[%emt 0:00:52]} 5. Nc3 {[%emt 0:00:44]} e6 {[%emt 0:00:28]} 6. Be2 {[%emt 0:01:04]} b5 {[%emt 0:01:46]} 7. a3 {[%emt 0:01:22]} Bb7 {[%emt 0:00:28]} 8. O-O {[%emt 0:05:03]} Nd7 {[%emt 0:00:55]} 9. Be3 {[%emt 0:02:04]} Ngf6 {[%emt 0:00:56]} 10. f3 {[%emt 0:01:21] B84: Sicilian Scheveningen: 6 Be2 a6, lines without early Be3.} h5 {[%emt 0:01:19]} 11. Qe1 {[%emt 0:06:55]} Be7 {[%emt 0:04:31]} 12. Qg3 $146 {[%emt 0:07:46] The position is equal.} ({Predecessor:} 12. a4 b4 13. Na2 a5 14. c3 bxc3 15. Nxc3 O-O 16. Qg3 {½-½ Saric,I (2692)-Wojtaszek,R (2749) Bundesliga 1819 2018 (10.1)}) 12... Kf8 {[%emt 0:12:26]} (12... O-O $11) 13. Rad1 {[%emt 0:03:10]} (13. Bg5 $16) 13... Rc8 {[%emt 0:01:07]} 14. Bd3 {[%emt 0:13:26]} h4 {[%emt 0:14:09]} 15. Qf2 {[%emt 0:03:18]} g6 {[%emt 0:01:33]} 16. Qd2 {[%emt 0:06:03]} Kg7 {[%emt 0:00:37]} 17. b4 {[%emt 0:02:32]} (17. h3 $11) 17... Qc7 {[%emt 0:03:13]} ({Better is} 17... Ne5 $17 18. Nce2 d5) 18. Nce2 {[%emt 0:02:38]} (18. Nde2 $15) 18... e5 $17 {[%emt 0:09:58]} 19. Nb3 {[%emt 0:00:16]} d5 {[%emt 0:00:38]} 20. exd5 {[%emt 0:07:48][%cal Od3g6]} Bxd5 {[%emt 0:00:31]} (20... Nxd5 21. Bf2 $17) (20... h3 {looks sharper.} 21. g4 Nb6 22. Nc5 Nfxd5 23. Nxb7 Qxb7 24. Be4 Rhd8) 21. Nec1 {[%emt 0:01:57]} (21. h3 $15) 21... Qc3 {[%emt 0:15:50] Black is more active.} (21... Be6 $17 {Threatens to win with ...Nd5.} 22. Ne2 h3) 22. Qxc3 $15 {[%emt 0:05:29]} Rxc3 {[%emt 0:00:14]} 23. Ne2 {[%emt 0:01:08]} Rc7 {[%emt 0:00:50]} 24. Rc1 {[%emt 0:08:05]} (24. h3 $15) 24... Rhc8 {[%emt 0:01:09]} 25. Na5 {[%emt 0:01:09]} Be6 {[%emt 0:04:18]} 26. Bf2 {[%emt 0:02:13]} g5 {[%emt 0:05:49]} (26... h3 $17 27. gxh3 Bxh3) 27. Rfd1 {[%emt 0:02:21]} h3 {[%emt 0:02:07]} 28. Rd2 {[%emt 0:02:55]} (28. gxh3 $1 $11 Kf8 (28... Bxh3 29. c4 $11) 29. c3) 28... hxg2 $17 {[%emt 0:00:34]} 29. Kxg2 {[%emt 0:00:02] [#]} (29. Ng3 $17) 29... g4 $1 $19 {[%emt 0:02:29]} 30. fxg4 {[%emt 0:03:12]} (30. Ng3 {might work better.}) 30... Nxg4 {[%emt 0:03:28]} 31. h3 {[%emt 0:01:40]} (31. Ng3 $142) 31... Bg5 {[%emt 0:01:04]} 32. hxg4 {[%emt 0:01:15][%cal Oc1d1]} Bxd2 {[%emt 0:00:10]} 33. Rd1 {[%emt 0:00:19]} Bg5 {[%emt 0:00:13]} 34. Kg3 $2 {[%emt 0:00:46] [#]} (34. Ng3) 34... Nf6 {[%emt 0:00:21]} 35. Bc5 {[%emt 0:00:41]} e4 {[%emt 0:00:14] Weighted Error Value: White=0.53/Black=0.26 (precise)   Mistake:       	White=10    	Black=4      Inaccurate:     	White=2     	Black=4      OK:         	White=6     	Black=8      Best:        	---       	Black=1} 0-1

[Event "SixDays Budapest March IM A 2025"]
[Site "Budapest"]
[Date "2025.03.24"]
[Round "1.2"]
[White "Heimisson, Hilmir Freyr"]
[Black "Mrithyunjay Mahadevan"]
[Result "1-0"]
[Annotator "TA"]
[ECO "A05"]
[WhiteElo "2388"]
[BlackElo "2295"]
[PlyCount "83"]
[EventDate "2025.03.23"]
[EventCountry "HUN"]
[SourceTitle "playchess.com"]
[Source "ChessBase"]
[SourceQuality "1"]
[TimeControl "5400+30"]

{[%evp 24,83,35,34,41,44,66,15,35,26,53,23,37,36,44,36,37,41,46,20,56,43,45,15,32,29,24,7,-3,5,-5,-21,82,14,21,-40,341,307,298,315,421,385,437,273,531,354,365,368,368,360,368,360,498,504,29988,1403,1259,1950,1681,1627,1317,1033]} 1. Nf3 {[%emt 0:00:03]} Nf6 {[%emt 0:00:08]} 2. g3 {[%emt 0:01:07]} c5 {[%emt 0:02:36]} 3. Bg2 {[%emt 0:01:02]} g6 {[%emt 0:00:18]} 4. b3 {[%emt 0:03:41]} Bg7 {[%emt 0:00:18]} 5. Bb2 {[%emt 0:00:18]} Nc6 {[%emt 0:01:32]} 6. c4 {[%emt 0:01:05]} O-O {[%emt 0:00:39]} 7. O-O {[%emt 0:00:12]} d6 {[%emt 0:03:32]} 8. d4 {[%emt 0:07:35]} cxd4 {[%emt 0:03:42]} 9. Nxd4 {[%emt 0:05:25]} Bd7 {[%emt 0:00:19]} 10. Nc3 {[%emt 0:02:09]} Nxd4 {[%emt 0:03:14]} 11. Qxd4 {[%emt 0:00:07]} Bc6 {[%emt 0:00:06]} 12. Nd5 {[%emt 0:22:36]} Ne8 {[%emt 0:10:20]} 13. Qd2 {[%emt 0:00:19]} e6 {[%emt 0:00:18] E60: King's Indian: Unusual lines and Fianchetto Variation without Nc3.} 14. Bxg7 {[%emt 0:02:21]} Nxg7 {[%emt 0:00:19]} 15. Ne3 {[%emt 0:00:16] White is more active.} ({White should play} 15. Nc3 $14) 15... Qc7 $146 {[%emt 0:02:09] The position is equal.} ({Predecessor:} 15... Bxg2 16. Kxg2 Qc7 17. Rfd1 Rfd8 18. Rac1 a5 19. h4 a4 20. b4 Qc6+ 21. f3 h5 {½-½ Jovic,S (2097)-Romero Ruscalleda,J (2160) Titled Tuesday intern op 28th Nov Late blitz 2023 (7)}) 16. Rfd1 {[%emt 0:02:17] Bxc6 is in the air} Rfd8 {[%emt 0:04:37]} 17. Ng4 {[%emt 0:05:15]} Ne8 {[%emt 0:00:36] Dodges Nf6+} 18. Qg5 {[%emt 0:10:13]} Bxg2 {[%emt 0:17:28]} 19. Kxg2 {[%emt 0:00:27]} Qc5 {[%emt 0:01:59]} 20. h4 {[%emt 0:05:18]} (20. Qe3 Qxe3 21. Nxe3 Kf8 22. f3) 20... h5 {[%emt 0:05:32] [#] Threatens to win with ...Qxg5.} 21. Ne3 {[%emt 0:02:26]} Rdc8 {[%emt 0:07:05]} 22. Qf4 {[%emt 0:04:06]} (22. Qxc5 {simplifies} dxc5 23. Rd7 Rab8 24. Rad1) 22... a5 {[%emt 0:01:17]} 23. g4 {[%emt 0:05:06]} Ra6 {[%emt 0:14:29]} 24. Rd3 {[%emt 0:00:55]} b5 {[%emt 0:03:57]} 25. gxh5 {[%emt 0:01:43]} Qxh5 {[%emt 0:00:40]} 26. cxb5 {[%emt 0:00:24]} Qxb5 {[%emt 0:00:32]} 27. Ng4 {[%emt 0:01:14]} Rc7 {[%emt 0:01:25] [#]} (27... Qb4 $11 {keeps the balance.} 28. Nf6+ Nxf6 29. Qxf6 Rc5) 28. Rg1 {[%emt 0:03:55]} (28. h5 $1 $16 {[%cal Rh5g6]} gxh5 29. Nf6+ Kf8 (29... Nxf6 $2 30. Qxf6 a4 31. Qd8+ Kh7 32. Qxc7 $18) 30. Rg3) 28... Qb4 {[%emt 0:00:56]} 29. Qg3 {[%emt 0:07:14]} (29. Nf6+ $11 Nxf6 30. Qxf6) 29... Ng7 $2 {[%emt 0:01:15][%mdl 8192] Black cannot hold the game after this.} (29... Rac6 $15 {keeps the upper hand.}) 30. Nf6+ $18 {[%emt 0:00:58]} Kf8 {[%emt 0:00:08][%cal Bg8f8,Bf8e7,Be7d7,Bd7c8,Bc8b8,Bb8a7][%mdl 32]} 31. Qg5 {[%emt 0:02:04]} Nf5 {[%emt 0:03:05] Repels Qh6+} 32. e4 {[%emt 0:00:58]} Qb7 {[%emt 0:01:32]} 33. Kh2 {[%emt 0:01:10]} Rc5 {[%emt 0:01:21]} (33... Rc2 34. Rf3 (34. exf5 Rxf2+ 35. Kg3 Rxf5 $18) 34... a4) 34. exf5 {[%emt 0:01:37]} Rxf5 {[%emt 0:00:07]} 35. Qh6+ {[%emt 0:00:31]} Ke7 {[%emt 0:00:05]} 36. Ng8+ {[%emt 0:00:48]} Kd7 {[%emt 0:00:07]} 37. Qf8 {[%emt 0:01:13] aiming for Qe7+. Prevents Ra8} Rxf2+ {[%emt 0:06:15]} 38. Kg3 {[%emt 0:00:06]} Rf5 {[%emt 0:00:19]} (38... Rc2 $18 39. Qxf7+ Kc8 40. Qxe6+ Kb8) 39. Qe7+ {[%emt 0:00:14]} (39. Rc1 $142 Qc6 40. Qe7+ (40. Rxc6 Rxc6 41. Ne7 Rfc5 $18) 40... Kc8 41. Qxd6 (41. Rxc6+ Rxc6 42. Qe8+ Kb7 $18) (41. Rxd6 Rf3+ 42. Kg2 Rc3+ 43. Rxc6+ Raxc6 $18) 41... Rf3+ 42. Rxf3 Qxc1 43. Qxa6+ Kd8 44. Rd3+ (44. Rxf7 Qe3+ 45. Rf3 Qg1+ 46. Kf4 Qh2+ 47. Ke4 Qh1 $18) 44... Kc7 45. Qa7+ (45. Qxa5+ Kb7 46. Qb5+ Ka8 47. Rd8+ Ka7 48. Rd7+ Qc7+ 49. Rxc7+ Ka8 50. Qe8#) 45... Kc6 46. Ne7+ (46. Qxa5 Qg1+ 47. Kf4 Qf1+ 48. Ke3 Qc1+ 49. Ke2 Qc2+ 50. Qd2 Qxd2+ 51. Kxd2 Kc5 $18) 46... Kb5 47. Qb8+ Kc5 48. Qd6+ Kb5 49. a4#) 39... Kc8 {[%emt 0:00:05] White is clearly winning.} 40. Rc1+ {[%emt 0:00:40]} (40. Rxd6 $2 Qf3+ 41. Kh2 Qf4+ 42. Rg3 Rxd6 $19) 40... Kb8 {[%emt 0:00:06]} 41. Qd8+ {[%emt 0:00:14]} (41. Rxd6 {leads to mate.} Qf3+ 42. Kh2 Qf4+ 43. Kg2 Qe4+ (43... Rxd6 44. Qc7+ Ka8 45. Qc8+ Ka7 46. Rc7+ Kb6 47. Qb7#) 44. Kg1 Qe3+ 45. Kh1 Qxc1+) 41... Ka7 {[%emt 0:00:07]} 42. Rc7 {[%emt 0:00:06] Weighted Error Value: White=0.45/Black=0.78  Loses game:     	---       	Black=1      Mistake:       	White=4     	Black=3      Inaccurate:     	White=5     	Black=4      OK:         	White=8     	Black=3      Best:        	White=2     	Black=2} (42. Rxd6 $2 Rxd6 (42... Qf3+ $2 43. Kh2 $19) 43. Qc7 (43. Qxd6 $2 {is the wrong capture.} Qf3+ 44. Kh2 Qe2+ 45. Kh3 Rf3+ $19) 43... Rd3+ 44. Kg4 Rd4+ 45. Kg3 Rf3+ 46. Kh2 Rxh4+ 47. Kg2 Rxb3+ 48. Qxb7+ Rxb7 $19) 1-0

[Event "SixDays Budapest March IM A 2025"]
[Site "Budapest"]
[Date "2025.03.24"]
[Round "1.3"]
[White "Li, Yilin"]
[Black "Kustar, Sandor"]
[Result "0-1"]
[Annotator "TA"]
[ECO "C01"]
[WhiteElo "1904"]
[BlackElo "2231"]
[PlyCount "104"]
[EventDate "2025.03.23"]
[EventCountry "HUN"]
[SourceTitle "playchess.com"]
[Source "ChessBase"]
[SourceQuality "1"]
[TimeControl "5400+30"]

{[%evp 16,104,18,8,14,3,5,0,19,0,0,0,61,-4,12,19,16,15,11,7,12,19,15,9,16,10,21,20,10,14,8,22,22,26,23,-10,-9,-10,-16,-28,-16,-29,-36,-27,-25,-97,-41,-187,-184,-184,-184,-182,-164,-164,-154,-161,-135,-130,-130,-375,-382,-605,-583,-581,-529,-1009,-951,-29981,-29981,-29983,-29984,-29985,-29986,-29986,-29987,-29988,-29989,-29989,-29990,-29994,-29995,-29996,-29995,-29995,-29994,-29994,-29995,-29997,-29997,-29998,-29995]} 1. e4 {[%emt 0:00:04]} e6 {[%emt 0:00:10]} 2. d4 {[%emt 0:01:38]} d5 {[%emt 0:00:09]} 3. exd5 {[%emt 0:00:05]} exd5 {[%emt 0:00:14]} 4. Bd3 {[%emt 0:00:05]} Bd6 {[%emt 0:01:48]} 5. Nf3 {[%emt 0:01:05]} Nc6 {[%emt 0:03:38]} 6. c3 {[%emt 0:01:02]} Nge7 {[%emt 0:01:35]} 7. Qc2 {[%emt 0:01:45]} Bg4 {[%emt 0:02:07]} 8. Nbd2 {[%emt 0:01:23]} Qd7 {[%emt 0:01:32]} 9. O-O {[%emt 0:04:42] 9.h3 deserves study.} h6 {[%emt 0:09:53] C01: French: Exchange Variation.} 10. Re1 {[%emt 0:01:30]} O-O {[%emt 0:00:26]} 11. b4 {[%emt 0:03:24]} a6 {[%emt 0:04:54][%cal Oe7g6] The position is equal.} 12. Ne5 {[%emt 0:03:18]} Bxe5 {[%emt 0:00:59]} 13. dxe5 {[%emt 0:00:18]} Rad8 $146 {[%emt 0:22:57]} (13... d4 $11) (13... Bf5 14. Nf3 Rfe8 15. Bf4 Nd8 16. Rad1 Bxd3 17. Rxd3 Qf5 18. Bc1 Nec6 19. Qd2 Nxe5 20. Rxe5 Rxe5 21. Nxe5 Qxe5 22. Rxd5 {½-½ Liu,Y (2337)-Yurtseven,M (2404) Marianske Lazne GM-A1 17th 2018 (5)}) 14. a3 {[%emt 0:07:12]} ({Better is} 14. Nb3 $14) 14... d4 {[%emt 0:07:27]} 15. Ne4 {[%emt 0:11:27]} (15. Nb3 dxc3 16. Nc5 Qd5 17. Bf1) 15... b6 {[%emt 0:11:25] [#] Wards off Nc5} (15... dxc3 {keeps more tension.} 16. Nc5 Qd5 17. Bf1 Bf5) 16. Bxh6 $1 {[%emt 0:10:00][%cal Oe4f6]} Nxe5 {[%emt 0:01:44]} 17. Bf4 {[%emt 0:23:47]} Nxd3 {[%emt 0:08:33]} 18. Qxd3 {[%emt 0:00:11]} Bf5 {[%emt 0:01:38]} 19. cxd4 {[%emt 0:07:41]} Qxd4 {[%emt 0:00:32]} 20. Qxd4 {[%emt 0:02:50]} Rxd4 {[%emt 0:00:02]} 21. Ng3 {[%emt 0:01:06]} Rxf4 {[%emt 0:03:04]} 22. Rxe7 {[%emt 0:00:02]} Rc8 {[%emt 0:00:36]} 23. Rc1 {[%emt 0:00:42]} c5 {[%emt 0:02:47]} 24. bxc5 {[%emt 0:01:40]} Be6 {[%emt 0:02:23]} 25. c6 {[%emt 0:01:45]} Rc4 $1 {[%emt 0:00:27]} 26. Rxc4 {[%emt 0:03:07]} Bxc4 $11 {[%emt 0:00:02][%mdl 4096] Endgame KRB-KRN. White is a pawn up.} 27. Re3 {[%emt 0:06:23]} ({Wrong is} 27. c7 $2 Be6 28. h3 Kf8 $19) 27... Rxc6 {[%emt 0:00:21]} 28. h4 {[%emt 0:00:22]} b5 {[%emt 0:01:07]} 29. Nf5 {[%emt 0:00:59] And now Ne7+ would win.} Kf8 {[%emt 0:01:24]} 30. h5 {[%emt 0:01:33]} (30. Nd4 $11 Rc5 31. Kh2) 30... a5 {[%emt 0:00:40]} (30... Rc5 $17 31. g4 Rd5 (31... Be6 32. Rd3 $17)) 31. Rg3 {[%emt 0:00:35] [#]} (31. Re1 $15) 31... b4 $1 $19 {[%emt 0:01:03]} 32. axb4 {[%emt 0:00:26]} axb4 {[%emt 0:00:04]} 33. Nd4 {[%emt 0:00:36]} Rd6 {[%emt 0:00:51]} 34. Nb3 {[%emt 0:01:12]} Rd1+ {[%emt 0:01:47]} 35. Kh2 {[%emt 0:00:03]} Rd3 {[%emt 0:00:10]} 36. Rxd3 {[%emt 0:01:32]} Bxd3 $17 {[%emt 0:00:05] KB-KN} 37. Nc5 $2 {[%emt 0:01:33] This move loses the game for White.} (37. Kg3 $17) 37... Bc2 $19 {[%emt 0:00:35] White must now prevent ...Ke7.} 38. Nd7+ {[%emt 0:00:16]} (38. Kg3 $142 Ke7 39. Kf3) 38... Ke7 {[%emt 0:00:07]} 39. Ne5 {[%emt 0:00:56]} Kd6 {[%emt 0:00:51] Inhibits Nc6.} 40. Nc4+ {[%emt 0:01:01]} Kc5 {[%emt 0:00:07]} 41. Nb2 {[%emt 0:01:02]} Kd4 {[%emt 0:00:19] Black mates.} 42. g4 {[%emt 0:00:23]} Kc3 {[%emt 0:00:09]} 43. f4 {[%emt 0:00:22]} Kxb2 {[%emt 0:00:29] KB-K3P} 44. f5 {[%emt 0:00:31]} Kc3 {[%emt 0:00:19]} 45. Kg3 {[%emt 0:00:15]} b3 {[%emt 0:00:18]} 46. Kf4 {[%emt 0:00:10]} b2 {[%emt 0:00:20]} 47. g5 {[%emt 0:00:06]} b1=Q {[%emt 0:00:09]} 48. h6 {[%emt 0:00:10]} gxh6 {[%emt 0:00:37]} 49. gxh6 {[%emt 0:00:03]} Qc1+ {[%emt 0:00:15]} 50. Ke5 {[%emt 0:00:22]} Qxh6 {[%emt 0:00:30]} 51. Kd5 {[%emt 0:00:29]} Qf6 {[%emt 0:00:50]} 52. Kc5 {[%emt 0:00:09]} Qxf5+ {[%emt 0:00:04] Weighted Error Value: White=0.46/Black=0.06 (flawless)   Loses game:     	White=1     	---        Mistake:       	White=4     	Black=2      Inaccurate:     	White=3     	---        OK:         	White=12    	Black=8      Best:        	---       	Black=5      Strong:       	---       	Black=2} 0-1

[Event "SixDays Budapest March IM A 2025"]
[Site "Budapest"]
[Date "2025.03.24"]
[Round "1.4"]
[White "Singh, Siddharth"]
[Black "Cu, Ivan Travis"]
[Result "1-0"]
[Annotator "TA"]
[ECO "B12"]
[WhiteElo "2239"]
[BlackElo "2286"]
[PlyCount "75"]
[EventDate "2025.03.23"]
[EventCountry "HUN"]
[SourceTitle "playchess.com"]
[Source "ChessBase"]
[SourceQuality "1"]
[TimeControl "5400+30"]

{[%evp 9,75,35,52,22,50,41,57,24,22,29,37,11,23,-5,12,-35,-31,-29,-29,-64,-56,-57,-47,-65,-57,-27,71,92,82,88,106,89,204,220,191,219,233,215,246,224,260,241,254,145,164,164,180,94,479,474,447,464,1062,707,728,700,700,700,700,700,700,700,700,700,685,680,735,732]} 1. e4 {[%emt 0:00:03]} c6 {[%emt 0:00:21]} 2. d4 {[%emt 0:00:07]} d5 {[%emt 0:00:11]} 3. e5 {[%emt 0:00:09]} Bf5 {[%emt 0:00:27]} 4. Nf3 {[%emt 0:00:08][%cal Bg1f3,Bf3e1,Be1c2,Bc2d4][%mdl 32]} e6 {[%emt 0:00:28]} 5. Be2 {[%emt 0:00:08]} Nd7 {[%emt 0:00:53]} 6. c3 {[%emt 0:00:11] B12: Caro-Kann: Advance Variation.} a5 {[%emt 0:02:06][%cal Ba7a5,Ba5a4][%mdl 32] now scores much better than the old 6...Ne7.} 7. O-O {[%emt 0:01:28]} a4 {[%emt 0:00:29]} 8. Nbd2 {[%emt 0:03:03][%cal Bb1d2,Bd2f3,Bf3e1,Be1d3][%mdl 32] White is slightly better.} h6 {[%emt 0:01:20]} 9. Ne1 {[%emt 0:05:02]} c5 $146 {[%emt 0:05:51]} ({Predecessor:} 9... Ne7 10. Bd3 c5 11. Ndf3 Qc7 12. Nh4 Bxd3 13. Nxd3 c4 14. Nb4 Nc6 15. a3 b5 {1-0 Nepomniachtchi,I (2754)-Duda,J (2739) Chessable Masters Winners rapid 2025 (1.1)}) 10. Nc2 {[%emt 0:02:46]} Ne7 {[%emt 0:00:58]} 11. Nf3 {[%emt 0:05:13]} Nc6 {[%emt 0:01:10]} 12. dxc5 {[%emt 0:05:04]} (12. Nfe1 $11) 12... Bxc5 {[%emt 0:02:32][%cal Of5e4]} (12... Ndxe5 $6 13. Nxe5 Bxc2 14. Qxc2 $16) 13. Ncd4 {[%emt 0:00:17]} Bg4 {[%emt 0:02:56]} 14. Bf4 {[%emt 0:14:40]} Qb6 {[%emt 0:05:15]} 15. Nxc6 {[%emt 0:00:47]} bxc6 {[%emt 0:00:50]} 16. Ne1 {[%emt 0:03:10]} Bf5 {[%emt 0:05:31][%cal Og7g5]} 17. Bd3 {[%emt 0:02:19] Black has space advantage and is better} Qxb2 {[%emt 0:16:28]} (17... Bxd3 $11 {keeps the balance.} 18. Nxd3 O-O) 18. Bxf5 $16 {[%emt 0:04:32] White sacrificed a pawn} exf5 {[%emt 0:00:41]} 19. Nd3 {[%emt 0:01:01]} Qb6 {[%emt 0:05:33]} 20. e6 {[%emt 0:06:06]} (20. Rb1 {simplifies} Qa7 21. e6 Nf6 22. exf7+ Kxf7 23. Ne5+) 20... fxe6 {[%emt 0:07:48]} (20... Nf6 $16 {keeps fighting.}) 21. Qh5+ $18 {[%emt 0:00:56]} Kd8 {[%emt 0:01:45]} 22. Rab1 {[%emt 0:06:55]} Qa7 {[%emt 0:01:38]} 23. Qf7 {[%emt 0:05:33]} Re8 {[%emt 0:02:36]} 24. Qxg7 {[%emt 0:03:19][%cal Od3e5]} Bf8 {[%emt 0:01:50]} 25. Qg6 {[%emt 0:00:47][%cal Of1e1]} Qa6 {[%emt 0:07:58]} 26. Rfd1 {[%emt 0:07:17]} (26. Ne5 $18 {Hoping for Nf7+.} Nxe5 27. Qf6+ (27. Bxe5 c5 $16) 27... Kd7 28. Bxe5 (28. Qxe5 Ra7 $16)) 26... c5 $16 {[%emt 0:04:44]} 27. Ne5 $40 {[%emt 0:03:27][%mdl 128] Black is in trouble.} (27. Bxh6 Bxh6 28. Qxh6 e5) 27... Nxe5 {[%emt 0:00:40]} 28. Bxe5 {[%emt 0:00:02][%cal Oc3c4]} Kd7 $2 {[%emt 0:01:19][%mdl 8192] [#] Black cannot hold the game after this.} (28... Bd6 $16 {is a better chance.} 29. Bxd6 Qxd6) 29. c4 $1 $18 {[%emt 0:00:20][%mdl 512] White is clearly winning.} d4 {[%emt 0:03:15]} 30. Rb5 {[%emt 0:00:06]} Ra7 {[%emt 0:14:19]} (30... Bd6 $142 31. Bxd6 Qxd6 32. Rb7+ (32. Qxh6 Reb8 $11) 32... Kd8 (32... Kc6 33. Rdb1 Qd8 34. Qxe8+ Kd6 35. R7b6+)) 31. Rdb1 {[%emt 0:02:15]} Bd6 {[%emt 0:00:19]} 32. Bxd6 {[%emt 0:00:44]} Qxd6 {[%emt 0:02:07]} 33. Qf7+ {[%emt 0:00:04]} (33. Qxh6 Rc7 34. Qh7+ Qe7 $16) 33... Qe7 {[%emt 0:01:59]} 34. Rb7+ {[%emt 0:00:07]} Rxb7 {[%emt 0:00:12]} 35. Rxb7+ {[%emt 0:00:05]} Kd6 {[%emt 0:00:05]} 36. Rxe7 {[%emt 0:00:11]} Rxe7 {[%emt 0:00:02]} 37. Qf8 {[%emt 0:00:41]} d3 {[%emt 0:00:19]} 38. Kf1 {[%emt 0:00:23] Weighted Error Value: White=0.33/Black=0.45  Loses game:     	---       	Black=1      Mistake:       	White=2     	Black=3      Inaccurate:     	White=6     	Black=1      OK:         	White=11    	Black=10     Best:        	White=1     	Black=5      Brilliant:      	White=1     	---} 1-0